bitfinex/quotes_BTCUSD_20241023
["timestamp","ask_amount","ask_price","bid_price","bid_amount"]
[1729689646702,0.1604839,66451.0,66450.0,0.447846]
[1729689648826,0.16040403,66451.0,66450.0,0.447846]
[1729689652402,0.16040403,66451.0,66450.0,0.451846]
[1729689654507,0.16122803,66451.0,66450.0,0.451846]
[1729689663236,0.16122803,66451.0,66450.0,0.357446]
[1729689668470,0.20630036,66451.0,66450.0,0.357446]
[1729689669308,0.16122803,66451.0,66450.0,0.357446]
[1729689670612,0.31173184,66451.0,66450.0,0.357446]
[1729689674691,0.31173184,66451.0,66450.0,0.353446]
[1729689674908,0.31173184,66451.0,66450.0,0.357446]
[1729689676489,0.31173184,66451.0,66450.0,0.353446]
[1729689676698,0.31173184,66451.0,66450.0,0.357446]
[1729689677551,0.31173184,66451.0,66450.0,0.353446]
[1729689677759,0.31173184,66451.0,66450.0,0.357446]
[1729689679295,0.37940745,66451.0,66450.0,0.357446]
[1729689679791,0.31173184,66451.0,66450.0,0.357446]
[1729689680313,0.37940745,66451.0,66450.0,0.357446]
[1729689680729,0.37940745,66451.0,66450.0,0.353446]
[1729689680941,0.31173184,66451.0,66450.0,0.357446]
[1729689681373,0.37941481,66451.0,66450.0,0.357446]
[1729689684490,0.228911,66451.0,66450.0,0.3936844]
[1729689684731,0.228911,66451.0,66450.0,0.451246]
[1729689684732,0.20635753,66451.0,66450.0,0.451246]
[1729689684954,0.16122803,66451.0,66450.0,0.451246]
[1729689685625,0.20635753,66451.0,66450.0,0.451246]
[1729689685858,0.20635862,66451.0,66450.0,0.451246]
[1729689687238,0.20635862,66451.0,66450.0,0.357446]
[1729689687949,0.35686243,66451.0,66450.0,0.353446]
[1729689688178,0.37942772,66451.0,66450.0,0.357446]
[1729689688418,0.47836831,66451.0,66450.0,0.357446]
[1729689689264,0.56862949,66451.0,66450.0,0.357446]
[1729689690525,0.568681,66451.0,66450.0,0.353446]
[1729689690741,0.568681,66451.0,66450.0,0.357446]
[1729689690951,0.568681,66451.0,66450.0,0.353446]
[1729689691128,0.568681,66451.0,66450.0,0.357446]
[1729689691367,0.568681,66451.0,66450.0,0.353446]
[1729689691576,0.568681,66451.0,66450.0,0.357446]
[1729689694181,0.67999644,66451.0,66450.0,0.357446]
[1729689694626,0.32788346,66451.0,66450.0,0.357446]
[1729689694835,0.16122803,66451.0,66450.0,0.357446]
[1729689695078,0.07846252,66451.0,66450.0,0.357446]
[1729689695338,0.22894852,66451.0,66450.0,0.357446]
[1729689696616,0.07846252,66451.0,66450.0,0.357446]
[1729689697057,0.22894852,66451.0,66450.0,0.357446]
[1729689697262,0.16122803,66451.0,66450.0,0.357446]
[1729689697653,0.27254347,66451.0,66450.0,0.357446]
[1729689698747,0.12205747,66451.0,66450.0,0.357446]
[1729689698961,0.27254347,66451.0,66450.0,0.357446]
[1729689699189,0.12205747,66451.0,66450.0,0.357446]
[1729689699396,0.27254347,66451.0,66450.0,0.357446]
[1729689700896,0.42304728,66451.0,66450.0,0.357446]
[1729689701339,0.58972496,66451.0,66450.0,0.357446]
[1729689702388,0.58972496,66451.0,66450.0,0.353446]
[1729689702597,0.58972496,66451.0,66450.0,0.357446]
[1729689702806,0.68001869,66451.0,66450.0,0.357446]
[1729689704751,0.68001869,66451.0,66450.0,0.353446]
[1729689704954,0.68005607,66451.0,66450.0,0.357446]
[1729689705406,0.79283225,66451.0,66450.0,0.357446]
[1729689705622,0.68005607,66451.0,66450.0,0.357446]
[1729689706042,0.68005607,66451.0,66450.0,0.353446]
[1729689706246,0.68005607,66451.0,66450.0,0.357446]
[1729689708629,0.68005607,66451.0,66450.0,0.353446]
[1729689708630,0.64178992,66451.0,66450.0,0.353446]
[1729689714694,0.64176789,66451.0,66450.0,0.353446]
[1729689719898,0.53045245,66451.0,66450.0,0.353446]
[1729689720330,0.64176789,66451.0,66450.0,0.353446]
[1729689722539,0.52545245,66451.0,66450.0,0.5709944]
[1729689722742,0.63828589,66451.0,66450.0,0.5709944]
[1729689722963,0.52545245,66451.0,66450.0,0.525346]
[1729689727717,0.37494864,66451.0,66450.0,0.525346]
[1729689730563,0.48626408,66451.0,66450.0,0.525346]
[1729689731808,0.22446264,66451.0,66450.0,0.529346]
[1729689732032,0.22892553,66451.0,66450.0,0.59534664]
[1729689732264,0.01074203,66451.0,66450.0,0.59534664]
[1729689732473,0.01074203,66451.0,66450.0,0.529346]
[1729689733551,0.01074203,66451.0,66450.0,0.68458908]
[1729689733760,0.00600296,66451.0,66450.0,0.68458908]
[1729689733973,0.000824,66451.0,66450.0,0.68458908]
[1729689736190,0.0060023,66451.0,66450.0,0.68458908]
[1729689739747,0.0060023,66451.0,66450.0,0.53410008]
[1729689740581,0.0060023,66451.0,66450.0,0.68458908]
[1729689740788,0.000824,66451.0,66450.0,0.81423959]
[1729689741423,0.000824,66451.0,66450.0,0.92555503]
[1729689744995,0.000824,66451.0,66450.0,1.08105884]
[1729689749203,0.000824,66451.0,66450.0,1.08831977]
[1729689749624,0.000824,66451.0,66450.0,1.08631977]
[1729689750057,0.000824,66451.0,66450.0,1.08831977]
[1729689750270,0.000824,66451.0,66450.0,1.19963521]
[1729689750481,0.000824,66451.0,66450.0,1.29963521]
[1729689750914,0.000824,66451.0,66450.0,1.18831977]
[1729689751117,0.22596317,66463.0,66462.0,0.16421508]
[1729689751350,0.22596317,66463.0,66462.0,0.38275962]
[1729689751566,0.04590605,66467.0,66466.0,0.15920608]
[1729689753931,0.000824,66467.0,66466.0,0.15920608]
[1729689754343,0.000824,66467.0,66466.0,0.16221474]
[1729689755027,0.000824,66467.0,66466.0,0.15920608]
[1729689755247,0.000824,66467.0,66466.0,0.28775574]
[1729689756340,0.000824,66467.0,66466.0,0.29076442]
[1729689757497,0.000824,66467.0,66466.0,0.29275574]
[1729689761213,0.000824,66467.0,66466.0,0.28775574]
[1729689763379,0.000824,66467.0,66466.0,0.00875408]
[1729689763574,0.15601307,66467.0,66466.0,0.004]
[1729689763774,0.00473907,66461.0,66460.0,0.004]
[1729689763975,0.15520507,66460.0,66459.0,0.004]
[1729689770651,0.00473907,66460.0,66459.0,0.004]
[1729689770882,0.00473907,66460.0,66459.0,0.20524029]
[1729689771127,0.00473907,66461.0,66460.0,0.150466]
[1729689771371,0.00473907,66461.0,66460.0,0.154466]
[1729689771617,0.00473907,66461.0,66460.0,0.23517733]
[1729689772134,0.00473907,66461.0,66460.0,0.23993141]
[1729689776165,0.00473907,66461.0,66460.0,0.08946541]
[1729689776368,0.00473907,66461.0,66460.0,0.00875408]
[1729689778462,0.15520307,66461.0,66460.0,0.00875408]
[1729689781555,0.15602707,66461.0,66460.0,0.00875408]
[1729689785648,0.00556307,66461.0,66460.0,0.15922008]
[1729689785863,0.00556307,66461.0,66460.0,0.23533059]
[1729689786072,0.00556307,66461.0,66460.0,0.24003583]
[1729689788126,0.000824,66461.0,66460.0,0.24003583]
[1729689789357,0.00556307,66461.0,66460.0,0.24003583]
[1729689789561,0.00556307,66461.0,66460.0,0.24003555]
[1729689790167,0.00556307,66461.0,66460.0,0.08956955]
[1729689790337,0.00556307,66461.0,66460.0,0.24003555]
[1729689791131,0.000824,66461.0,66460.0,0.24003555]
[1729689793991,0.000824,66461.0,66460.0,0.24003554]
[1729689794394,0.000824,66461.0,66460.0,0.35135098]
[1729689794709,0.000824,66461.0,66460.0,0.68845479]
[1729689794923,0.000824,66463.0,66462.0,0.01901501]
[1729689795141,0.000824,66463.0,66462.0,0.58160344]
[1729689795810,0.000824,66463.0,66462.0,0.57634251]
[1729689796036,0.000824,66463.0,66462.0,0.57163756]
[1729689806874,0.000824,66463.0,66462.0,0.39933756]
[1729689809917,0.000824,66463.0,66462.0,0.49563756]
[1729689810136,0.000824,66463.0,66462.0,0.57463756]
[1729689815756,0.000824,66463.0,66462.0,0.34513375]
[1729689817461,0.000824,66463.0,66462.0,0.34013375]
[1729689817674,0.000824,66463.0,66462.0,0.34513375]
[1729689818748,0.000824,66463.0,66462.0,0.34013375]
[1729689818943,0.000824,66463.0,66462.0,0.34513375]
[1729689819546,0.000824,66463.0,66462.0,0.34013375]
[1729689819750,0.000824,66463.0,66462.0,0.34513375]
[1729689820367,0.000824,66463.0,66462.0,0.24883375]
[1729689823512,0.000824,66467.0,66466.0,0.15920608]
[1729689823730,0.26732851,66467.0,66466.0,0.004]
[1729689823942,0.44597637,66467.0,66466.0,0.004]
[1729689824358,0.33466093,66467.0,66466.0,0.004]
[1729689825204,0.18421093,66467.0,66466.0,0.004]
[1729689825408,0.01081093,66467.0,66466.0,0.21567631]
[1729689825838,0.01081093,66467.0,66466.0,0.06522431]
[1729689827477,0.01081093,66467.0,66466.0,0.004]
[1729689828557,0.16126093,66467.0,66466.0,0.004]
[1729689828836,0.01081093,66467.0,66466.0,0.004]
[1729689829037,0.12212637,66467.0,66466.0,0.004]
[1729689829455,0.27257637,66467.0,66466.0,0.004]
[1729689829663,0.44407637,66467.0,66466.0,0.004]
[1729689830315,0.00473907,66464.0,66463.0,0.004]
[1729689830532,0.44581151,66464.0,66463.0,0.004]
[1729689830741,0.49091899,66464.0,66463.0,0.004]
[1729689830955,0.150461,66462.0,66461.0,0.001646]
[1729689831203,0.324861,66462.0,66461.0,0.001646]
[1729689831416,0.32960007,66462.0,66461.0,0.005646]
[1729689831627,0.33484066,66462.0,66461.0,0.005646]
[1729689832255,0.49034447,66462.0,66461.0,0.001646]
[1729689832484,0.53545308,66462.0,66461.0,0.001646]
[1729689832718,0.55800301,66462.0,66461.0,0.001646]
[1729689832925,0.88135678,66462.0,66461.0,0.001646]
[1729689833146,0.92829088,66462.0,66461.0,0.001646]
[1729689833367,0.95081611,66462.0,66461.0,0.001646]
[1729689833580,0.72678477,66462.0,66461.0,0.001646]
[1729689833835,0.79254585,66462.0,66461.0,0.001646]
[1729689834046,0.79114539,66462.0,66461.0,0.001646]
[1729689834254,0.8812846,66462.0,66461.0,0.001646]
[1729689835291,0.69224466,66462.0,66461.0,0.001646]
[1729689837148,0.62465991,66462.0,66461.0,0.001646]
[1729689837354,0.66969491,66462.0,66461.0,0.001646]
[1729689838002,0.49529491,66462.0,66461.0,0.001646]
[1729689838209,0.45025991,66462.0,66461.0,0.001646]
[1729689840520,0.33894447,66462.0,66461.0,0.001646]
[1729689842200,0.45025991,66462.0,66461.0,0.001646]
[1729689843246,0.33894447,66462.0,66461.0,0.001646]
[1729689843901,0.45025991,66462.0,66461.0,0.001646]
[1729689846519,0.56157535,66462.0,66461.0,0.001646]
[1729689847996,0.70659455,66462.0,66461.0,0.001646]
[1729689848210,0.70859455,66462.0,66461.0,0.001646]
[1729689848423,0.96459906,66462.0,66461.0,0.001646]
[1729689848644,0.98710867,66462.0,66461.0,0.001646]
[1729689848850,0.87456065,66462.0,66461.0,0.001646]
[1729689849266,0.98704055,66462.0,66461.0,0.001646]
[1729689850765,0.87456065,66462.0,66461.0,0.001646]
[1729689850946,0.87656065,66462.0,66461.0,0.001646]
[1729689851189,0.98904055,66462.0,66461.0,0.001646]
[1729689851438,0.98704055,66462.0,66461.0,0.001646]
[1729689852286,0.87656065,66462.0,66461.0,0.001646]
[1729689852490,0.87456065,66462.0,66461.0,0.001646]
[1729689853556,0.98904055,66462.0,66461.0,0.001646]
[1729689853761,0.87456065,66462.0,66461.0,0.001646]
[1729689858824,0.87656065,66462.0,66461.0,0.001646]
[1729689859051,0.87456065,66462.0,66461.0,0.001646]
[1729689859304,0.9645163,66462.0,66461.0,0.001646]
[1729689859796,0.87456065,66462.0,66461.0,0.001646]
[1729689860047,0.98904055,66462.0,66461.0,0.001646]
[1729689860545,0.87656065,66462.0,66461.0,0.001646]
[1729689861909,0.87456065,66462.0,66461.0,0.001646]
[1729689862314,0.87656065,66462.0,66461.0,0.001646]
[1729689864267,0.87456065,66462.0,66461.0,0.001646]
[1729689866180,0.88256065,66462.0,66461.0,0.001646]
[1729689866383,0.88056065,66462.0,66461.0,0.001646]
[1729689867832,0.88256065,66462.0,66461.0,0.001646]
[1729689869086,0.90611492,66462.0,66461.0,0.001646]
[1729689869703,0.90411492,66462.0,66461.0,0.001646]
[1729689872239,1.03917254,66462.0,66461.0,0.001646]
[1729689874314,0.90411492,66462.0,66461.0,0.001646]
[1729689874927,0.68148404,66462.0,66461.0,0.001646]
[1729689875135,0.90411492,66462.0,66461.0,0.001646]
[1729689877701,0.73801318,66462.0,66461.0,0.001646]
[1729689878738,0.90446654,66462.0,66461.0,0.001646]
[1729689881045,0.73801318,66462.0,66461.0,0.001646]
[1729689885253,0.67587953,66462.0,66461.0,0.001646]
[1729689885448,0.76419497,66462.0,66461.0,0.098446]
[1729689885663,0.6406407,66462.0,66461.0,0.098446]
[1729689886617,0.52932526,66462.0,66461.0,0.098446]
[1729689886896,0.7406407,66462.0,66461.0,0.098446]
[1729689887646,0.47382145,66462.0,66461.0,0.098446]
[1729689888101,0.37382145,66462.0,66461.0,0.098446]
[1729689888256,0.2717561,66462.0,66461.0,0.175446]
[1729689890292,0.31683512,66462.0,66461.0,0.175446]
[1729689891761,0.16044066,66462.0,66461.0,0.1974156]
[1729689891984,0.00524059,66462.0,66461.0,0.31348512]
[1729689892194,0.00524059,66462.0,66461.0,0.20216968]
[1729689892195,0.16044066,66462.0,66461.0,0.20216968]
[1729689892558,0.00524059,66462.0,66461.0,0.20716968]
[1729689892765,0.000823,66463.0,66462.0,0.01375408]
[1729689892965,0.000824,66467.0,66466.0,0.16420608]
[1729689893191,0.000824,66467.0,66466.0,0.44993012]
[1729689893415,0.000824,66467.0,66466.0,0.44692152]
[1729689894835,0.000824,66467.0,66466.0,0.45288341]
[1729689895237,0.000824,66467.0,66466.0,0.44692152]
[1729689895499,0.000824,66467.0,66466.0,0.1754]
[1729689895500,0.15601307,66467.0,66466.0,0.1754]
[1729689895702,0.15601307,66467.0,66466.0,0.18015408]
[1729689895919,0.16125278,66467.0,66466.0,0.18015408]
[1729689896095,0.16125278,66467.0,66466.0,0.1754]
[1729689896294,0.16125278,66467.0,66466.0,0.0851]
[1729689897417,0.16125278,66467.0,66466.0,0.004]
[1729689898546,0.16125278,66467.0,66461.0,0.081246]
[1729689898547,0.30565907,66463.0,66461.0,0.005646]
[1729689898682,0.30565907,66463.0,66461.0,0.001646]
[1729689898683,0.42201932,66462.0,66461.0,0.001646]
[1729689900298,0.48475728,66462.0,66461.0,0.005646]
[1729689900498,0.48475728,66462.0,66461.0,0.001646]
[1729689901303,0.48475728,66462.0,66461.0,0.005646]
[1729689901304,0.15520007,66462.0,66461.0,0.005646]
[1729689902187,0.15520007,66462.0,66461.0,0.055646]
[1729689902337,0.30570388,66462.0,66461.0,0.055646]
[1729689905133,0.00473907,66462.0,66461.0,0.055646]
[1729689905266,0.00473907,66462.0,66461.0,0.132046]
[1729689905991,0.32925347,66462.0,66461.0,0.132046]
[1729689906998,0.00473907,66462.0,66461.0,0.132046]
[1729689907224,0.00473907,66462.0,66461.0,0.31126201]
[1729689907432,0.00473907,66462.0,66461.0,0.16079801]
[1729689907632,0.00473907,66462.0,66461.0,0.31126201]
[1729689908052,0.00473907,66462.0,66461.0,0.16079801]
[1729689908279,0.00473907,66462.0,66461.0,0.132046]
[1729689910997,0.00473907,66462.0,66461.0,0.228246]
[1729689912777,0.15520007,66462.0,66461.0,0.228246]
[1729689912993,0.00473907,66462.0,66461.0,0.228246]
[1729689916677,0.15520007,66462.0,66461.0,0.228246]
[1729689920054,0.15520007,66462.0,66461.0,0.132046]
[1729689920266,0.00473907,66462.0,66461.0,0.132046]
[1729689922080,0.15520007,66462.0,66461.0,0.132046]
[1729689922331,0.15520007,66462.0,66461.0,0.055646]
[1729689926180,0.00473907,66462.0,66461.0,0.055646]
[1729689926386,0.151284,66463.0,66462.0,0.15921508]
[1729689926387,0.000823,66463.0,66462.0,0.15921508]
[1729689926804,0.000823,66463.0,66462.0,0.24001508]
[1729689927436,0.000823,66463.0,66462.0,0.33772384]
[1729689927651,0.000823,66463.0,66462.0,0.44869352]
[1729689934099,0.000823,66463.0,66462.0,0.45033952]
[1729689937991,0.000823,66463.0,66462.0,0.44533952]
[1729689948321,0.000823,66463.0,66462.0,0.55663446]
[1729689950256,0.000823,66463.0,66462.0,0.94336237]
[1729689950476,0.000823,66463.0,66462.0,0.7173992]
[1729689953503,0.000824,66467.0,66466.0,0.34776701]
[1729689953727,0.000824,66467.0,66466.0,0.87136451]
[1729689953961,0.000824,66467.0,66466.0,0.97136451]
[1729689954452,0.000824,66467.0,66466.0,0.9226167]
[1729689954674,0.000824,66472.0,66471.0,0.51659808]
[1729689954900,0.000824,66472.0,66471.0,0.66710189]
[1729689955149,0.000824,66472.0,66471.0,0.8196057]
[1729689955443,0.000824,66472.0,66471.0,0.9196057]
[1729689956913,0.000824,66472.0,66471.0,0.96452955]
[1729689957425,0.000824,66472.0,66471.0,0.9196057]
[1729689957651,0.000824,66472.0,66471.0,0.92577491]
[1729689958581,0.000824,66472.0,66471.0,0.92377491]
[1729689959591,0.000824,66472.0,66471.0,0.16419508]
[1729689959814,0.000824,66472.0,66471.0,0.15919508]
[1729689960042,0.000824,66472.0,66471.0,0.16419508]
[1729689960269,0.00661869,66472.0,66471.0,0.16419508]
[1729689960518,0.000824,66472.0,66471.0,0.16419508]
[1729689960749,0.0066184,66472.0,66471.0,0.24079319]
[1729689960981,0.00064291,66472.0,66471.0,0.24079319]
[1729689961210,0.00643731,66472.0,66471.0,0.24079319]
[1729689961477,0.00064291,66472.0,66471.0,0.24079319]
[1729689961975,0.00064291,66472.0,66471.0,0.74274747]
[1729689962205,0.00064291,66472.0,66471.0,0.73973907]
[1729689962686,0.00064291,66472.0,66471.0,0.745]
[1729689965185,0.00064291,66472.0,66471.0,0.747]
[1729689965884,0.00064291,66472.0,66471.0,0.847]
[1729689967615,0.00064291,66472.0,66471.0,0.977]
[1729689969432,0.000823,66484.0,66483.0,0.16416808]
[1729689969643,0.0066362,66484.0,66483.0,0.25886309]
[1729689970108,0.000823,66484.0,66483.0,0.5882167]
[1729689970312,0.000823,66484.0,66483.0,0.58520897]
[1729689970525,0.000823,66484.0,66483.0,0.58320897]
[1729689972954,0.000823,66484.0,66483.0,0.58520897]
[1729689973170,0.000823,66484.0,66483.0,0.58320897]
[1729689977326,0.000823,66484.0,66483.0,0.4093669]
[1729689977535,0.000823,66484.0,66483.0,0.58320897]
[1729689978211,0.000823,66484.0,66483.0,0.25386309]
[1729689978436,0.000823,66484.0,66483.0,0.25886309]
[1729689979803,0.00556207,66484.0,66483.0,0.004]
[1729689980035,0.00556207,66484.0,66483.0,0.15916808]
[1729689980505,0.0114034,66484.0,66483.0,0.15916808]
[1729689980740,0.00556207,66484.0,66483.0,0.15916808]
[1729689980979,0.0114034,66484.0,66483.0,0.15916808]
[1729689981209,0.00556207,66484.0,66483.0,0.15916808]
[1729689981437,0.0114034,66484.0,66483.0,0.15916808]
[1729689982846,0.00666433,66484.0,66483.0,0.23575279]
[1729689983619,0.000823,66484.0,66483.0,0.23575279]
[1729689983844,0.000823,66484.0,66483.0,0.2387607]
[1729689984317,0.000823,66484.0,66483.0,0.23575279]
[1729689985770,0.000823,66484.0,66483.0,0.23876064]
[1729689985977,0.000823,66484.0,66483.0,0.23575279]
[1729689986186,0.000823,66484.0,66483.0,0.2387606]
[1729689987295,0.000823,66484.0,66483.0,0.3862566]
[1729689989684,0.000823,66484.0,66483.0,0.3912566]
[1729689990381,0.000823,66484.0,66483.0,0.24075279]
[1729689996066,0.000823,66484.0,66483.0,0.3912566]
[1729689996817,0.001704,66490.0,66489.0,0.01901501]
[1729689997029,0.001704,66490.0,66489.0,0.57496089]
[1729689997236,0.001704,66490.0,66489.0,0.67496089]
[1729689997447,0.001704,66490.0,66489.0,0.77247645]
[1729689997862,0.001704,66490.0,66489.0,0.77447645]
[1729689998070,0.001704,66490.0,66489.0,0.92298026]
[1729689998278,0.001704,66490.0,66489.0,0.92498026]
[1729689998908,0.001704,66490.0,66489.0,0.96985139]
[1729689999328,0.001704,66490.0,66489.0,0.92498026]
[1729690001241,0.001704,66490.0,66489.0,0.92298026]
[1729690002504,0.001704,66490.0,66489.0,0.59341552]
[1729690002714,0.001704,66490.0,66489.0,0.40957345]
[1729690003132,0.080604,66490.0,66489.0,0.15906964]
[1729690003362,0.080604,66490.0,66489.0,0.00866964]
[1729690003598,0.08534307,66490.0,66489.0,0.004]
[1729690003827,0.001704,66490.0,66489.0,0.33291171]
[1729690005373,0.001704,66490.0,66489.0,0.15906964]
[1729690006217,0.001704,66490.0,66489.0,0.28310511]
[1729690007745,0.001704,66490.0,66489.0,0.15906964]
[1729690011727,0.001704,66490.0,66489.0,0.16207732]
[1729690012797,0.001704,66490.0,66489.0,0.15906964]
[1729690013215,0.001704,66490.0,66489.0,0.31258102]
[1729690013433,0.001704,66490.0,66489.0,0.30957345]
[1729690013639,0.001704,66490.0,66489.0,0.46007726]
[1729690013883,0.001704,66490.0,66489.0,0.56033819]
[1729690014098,0.001704,66490.0,66489.0,0.57033819]
[1729690017918,0.001704,66490.0,66489.0,0.57198419]
[1729690018128,0.001704,66490.0,66489.0,0.57398419]
[1729690018509,0.001704,66490.0,66489.0,0.57198419]
[1729690019559,0.001704,66490.0,66489.0,0.57398419]
[1729690020632,0.001704,66490.0,66489.0,0.57198419]
[1729690020840,0.001,66500.0,66499.0,0.16930857]
[1729690021047,0.001,66500.0,66499.0,0.60081561]
[1729690021259,0.001,66500.0,66499.0,0.60055468]
[1729690021670,0.0809,66500.0,66499.0,0.2662088]
[1729690022081,0.0809,66500.0,66499.0,0.1158308]
[1729690022290,0.0809,66500.0,66499.0,0.00866964]
[1729690022291,0.08563907,66500.0,66499.0,0.00866964]
[1729690022500,0.08563907,66500.0,66499.0,0.15904764]
[1729690023327,0.08563907,66500.0,66499.0,0.00866964]
[1729690024564,0.08563907,66500.0,66499.0,0.004]
[1729690024771,0.08563907,66500.0,66499.0,0.00866964]
[1729690026459,0.08563907,66500.0,66499.0,0.0401137]
[1729690027295,0.08563907,66500.0,66499.0,0.00866964]
[1729690027509,0.08563907,66500.0,66499.0,0.33288971]
[1729690027510,0.00573907,66500.0,66499.0,0.33288971]
[1729690027925,0.00573907,66500.0,66499.0,0.15904764]
[1729690029599,0.001823,66500.0,66499.0,0.15904764]
[1729690029801,0.001823,66500.0,66499.0,0.57733579]
[1729690032483,0.001823,66500.0,66499.0,0.57933579]
[1729690032702,0.001823,66500.0,66499.0,0.57733579]
[1729690035161,0.001823,66500.0,66499.0,0.57933579]
[1729690035390,0.001823,66500.0,66499.0,0.57733579]
[1729690035606,0.001823,66500.0,66499.0,0.57959672]
[1729690035839,0.0082682,66505.0,66504.0,0.15903564]
[1729690036062,0.0082682,66505.0,66504.0,0.48338152]
[1729690036510,0.0082682,66505.0,66504.0,0.48538152]
[1729690037367,0.0082682,66505.0,66504.0,0.65708152]
[1729690037582,0.0082682,66505.0,66504.0,0.48338152]
[1729690037794,0.0082682,66505.0,66504.0,0.63388533]
[1729690038296,0.0082282,66505.0,66504.0,0.63388533]
[1729690042559,0.0082282,66505.0,66504.0,0.63414626]
[1729690048250,0.0082282,66505.0,66504.0,0.63388533]
[1729690048735,0.0082282,66505.0,66504.0,0.48338152]
[1729690050369,0.0082282,66505.0,66504.0,0.63388533]
[1729690053201,0.0082282,66505.0,66504.0,0.76388533]
[1729690055059,0.0082282,66505.0,66504.0,0.76414626]
[1729690055535,0.0082282,66505.0,66504.0,0.63414626]
[1729690056546,0.0090512,66505.0,66504.0,0.63414626]
[1729690061626,0.0090512,66505.0,66504.0,0.82320408]
[1729690063914,0.0090512,66505.0,66504.0,0.82520408]
[1729690064122,0.0090512,66505.0,66504.0,0.82320408]
[1729690066325,0.0090512,66505.0,66504.0,0.76048519]
[1729690067680,0.0090512,66505.0,66504.0,0.87360837]
[1729690067881,0.0090512,66505.0,66504.0,0.97360837]
[1729690068115,0.0090512,66505.0,66504.0,0.98360837]
[1729690068886,0.0090512,66505.0,66504.0,0.98525437]
[1729690070381,0.001704,66507.0,66506.0,0.25262293]
[1729690070598,0.001704,66514.0,66506.0,0.25262293]
[1729690070599,0.001704,66514.0,66513.0,0.25927657]
[1729690070816,0.001704,66514.0,66513.0,0.40978038]
[1729690071039,0.00734911,66514.0,66513.0,0.69170356]
[1729690071265,0.001704,66514.0,66513.0,0.69170356]
[1729690072348,0.001704,66514.0,66513.0,0.58342807]
[1729690072609,0.001704,66514.0,66513.0,0.67710941]
[1729690072807,0.001704,66514.0,66513.0,0.35295791]
[1729690073025,0.175404,66514.0,66513.0,0.29786295]
[1729690074161,0.18107657,66514.0,66513.0,0.29786295]
[1729690074812,0.08527657,66514.0,66513.0,0.29786295]
[1729690077251,0.00737657,66514.0,66513.0,0.29786295]
[1729690078140,0.00737657,66514.0,66513.0,0.25295791]
[1729690078365,0.01211564,66514.0,66513.0,0.25295791]
[1729690080339,0.08881564,66514.0,66513.0,0.004]
[1729690080547,0.01211564,66514.0,66513.0,0.004]
[1729690080759,0.46315064,66514.0,66513.0,0.004]
[1729690081183,0.64195064,66514.0,66513.0,0.004]
[1729690081405,0.34125964,66514.0,66513.0,0.004]
[1729690081644,0.34125964,66514.0,66510.0,0.00466964]
[1729690081645,0.1788,66513.0,66512.0,0.004]
[1729690081880,0.22388177,66513.0,66512.0,0.004]
[1729690082312,0.18447257,66513.0,66512.0,0.004]
[1729690082522,0.13447257,66513.0,66512.0,0.154348]
[1729690083414,0.13447257,66513.0,66512.0,0.23039156]
[1729690083623,0.08457257,66513.0,66512.0,0.2350612]
[1729690083835,0.0789,66513.0,66512.0,0.2350612]
[1729690086204,0.001704,66514.0,66513.0,0.15501564]
[1729690086480,0.001704,66514.0,66513.0,0.27273496]
[1729690087400,0.001704,66514.0,66513.0,0.27574177]
[1729690087615,0.001704,66514.0,66513.0,0.44638265]
[1729690091168,0.001704,66514.0,66513.0,0.59688646]
[1729690093689,0.001704,66514.0,66513.0,0.59853246]
[1729690095747,0.001704,66514.0,66513.0,0.59879339]
[1729690097209,0.001704,66514.0,66513.0,0.69659339]
[1729690100940,0.001704,66514.0,66513.0,0.79659339]
[1729690103653,0.001704,66514.0,66513.0,0.87379339]
[1729690103875,0.001704,66514.0,66513.0,0.87179339]
[1729690104422,0.001704,66514.0,66513.0,0.80922336]
[1729690105041,0.001704,66514.0,66513.0,0.81922336]
[1729690106243,0.001704,66514.0,66513.0,0.88175222]
[1729690110259,0.001704,66514.0,66513.0,0.87149129]
[1729690110473,0.001704,66514.0,66513.0,0.52488477]
[1729690110685,0.001704,66514.0,66513.0,0.70349129]
[1729690111118,0.001704,66514.0,66513.0,0.70849129]
[1729690111343,0.001704,66514.0,66513.0,0.69849129]
[1729690111548,0.001704,66514.0,66513.0,0.52488477]
[1729690112681,0.001704,66514.0,66513.0,0.27438096]
[1729690112888,0.001704,66514.0,66513.0,0.16066164]
[1729690114404,0.001704,66514.0,66513.0,0.151992]
[1729690114618,0.10154307,66514.0,66513.0,0.005646]
[1729690114823,0.17834307,66514.0,66513.0,0.005646]
[1729690115258,0.17834307,66514.0,66513.0,0.155992]
[1729690115714,0.17834307,66514.0,66513.0,0.23219996]
[1729690115939,0.17834307,66514.0,66513.0,0.16066164]
[1729690117453,0.173604,66514.0,66513.0,0.001646]
[1729690117716,0.35194959,66514.0,66513.0,0.001646]
[1729690118571,0.50229359,66514.0,66513.0,0.001646]
[1729690118778,0.35194959,66514.0,66513.0,0.001646]
[1729690120057,0.17834307,66514.0,66513.0,0.001646]
[1729690120746,0.17834307,66514.0,66513.0,0.04778306]
[1729690120964,0.17834307,66514.0,66513.0,0.001646]
[1729690122033,0.17834307,66514.0,66513.0,0.151992]
[1729690123529,0.17834307,66514.0,66513.0,0.001646]
[1729690124141,0.17834307,66514.0,66513.0,0.151992]
[1729690124351,0.17834307,66514.0,66513.0,0.001646]
[1729690125169,0.17834307,66514.0,66513.0,0.151992]
[1729690125586,0.17834307,66514.0,66513.0,0.22819876]
[1729690125793,0.17834307,66514.0,66513.0,0.151992]
[1729690128802,0.17834307,66514.0,66513.0,0.001646]
[1729690129007,0.17834307,66514.0,66513.0,0.151992]
[1729690129506,0.08324307,66514.0,66513.0,0.151992]
[1729690129715,0.001704,66514.0,66513.0,0.151992]
[1729690129924,0.001704,66514.0,66513.0,0.25826986]
[1729690132678,0.0089937,66514.0,66513.0,0.25826986]
[1729690136659,0.00881275,66514.0,66513.0,0.25826986]
[1729690140996,0.00152305,66514.0,66513.0,0.25826986]
[1729690144445,0.00152305,66514.0,66513.0,0.36943069]
[1729690145285,0.00152305,66514.0,66513.0,0.37810033]
[1729690147371,0.00152305,66514.0,66513.0,0.52886507]
[1729690147582,0.00152305,66514.0,66513.0,0.62016507]
[1729690150388,0.00152305,66514.0,66513.0,0.69986507]
[1729690155700,0.00152305,66514.0,66513.0,0.70186507]
[1729690155904,0.00152305,66514.0,66513.0,0.69986507]
[1729690158325,0.00152305,66514.0,66513.0,0.70186507]